lending/lending_fUSD_20241120
["ID","MTS","AMOUNT","RATE_DAILY","PERIOD"]
[342737059,1732090314159,-667.95,0.00056712,120]
[342737060,1732090314168,-500.0,0.00056712,120]
[342737061,1732090314177,-500.0,0.00056712,120]
[342737062,1732090314188,-500.0,0.00056712,120]
[342737063,1732090314197,-524.99060292,0.00056712,120]
[342737064,1732090314206,-500.0,0.00056712,120]
[342737065,1732090314216,-500.0,0.00056712,120]
[342737066,1732090314227,-500.0,0.00056712,120]
[342737067,1732090314236,-500.0,0.00056712,120]
[342737068,1732090314245,-356.44447172,0.00056712,120]
[342737069,1732090314254,-500.0,0.00056712,120]
[342737070,1732090314263,-500.0,0.00056712,120]
[342737071,1732090314271,-500.0,0.00056712,120]
[342737072,1732090314281,-852.9,0.00056712,120]
[342737073,1732090314290,-500.0,0.00056712,120]
[342737074,1732090314303,-500.0,0.00056712,120]
[342737075,1732090314312,-500.0,0.00056712,120]
[342737076,1732090314322,-291.95171253,0.000569,35]
[342737077,1732090314331,-500.0,0.00056985,120]
[342737078,1732090314343,-500.0,0.00056985,120]
[342737079,1732090314352,-500.0,0.00056985,120]
[342737080,1732090314362,-500.0,0.00056986,120]
[342737081,1732090314371,-500.0,0.00056986,120]
[342737082,1732090314381,-583.63,0.00056986,120]
[342737083,1732090314390,-500.0,0.00056986,120]
[342737084,1732090314399,-500.0,0.00056986,120]
[342737085,1732090314408,-1068.5,0.00056986,120]
[342737086,1732090314416,-598.94,0.00056986,120]
[342737087,1732090314425,-1682.29,0.00056986,120]
[342737088,1732090314434,-500.0,0.00056986,120]
[342737089,1732090314443,-500.0,0.00056986,120]
[342737090,1732090314452,-12247.35,0.00056986,120]
[342737091,1732090314461,-1420.1,0.00056986,120]
[342737092,1732090314470,-500.0,0.00056986,120]
[342737093,1732090314478,-1292.82,0.00056986,120]
[342737094,1732090314487,-403.13964229,0.00056986,120]
[342737095,1732090314496,-500.0,0.00056986,120]
[342737096,1732090314504,-1329.44,0.00056986,120]
[342737097,1732090314513,-500.0,0.00056986,120]
[342737098,1732090314523,-500.0,0.00056986,120]
[342737099,1732090314533,-1607.8,0.00056986,120]
[342737100,1732090314542,-500.0,0.00056986,120]
[342737101,1732090314551,-1376.52,0.00056986,120]
[342737102,1732090314560,-500.0,0.00056986,120]
[342737103,1732090314569,-500.0,0.00056986,120]
[342737104,1732090314578,-742.7,0.00056986,20]
[342737105,1732090314587,-843.95,0.00056986,120]
[342737106,1732090314596,-500.0,0.00056986,120]
[342737107,1732090314605,-500.0,0.00056986,120]
[342737108,1732090314614,-500.0,0.00056986,120]
[342737109,1732090314623,-500.0,0.00056986,120]
[342737110,1732090314632,-464.92688889,0.00056986,120]
[342737111,1732090314641,-500.0,0.00056986,120]
[342737112,1732090314650,-500.0,0.00056986,120]
[342737113,1732090314659,-249.84,0.00056986,120]
[342737114,1732090314667,-500.0,0.00056986,120]
[342737115,1732090314676,-500.0,0.00056986,120]
[342737116,1732090314685,-500.0,0.00056986,120]
[342737117,1732090314694,-1244.57,0.00056986,120]
[342737118,1732090314703,-500.0,0.00056986,120]
[342737119,1732090314712,-1316.06,0.00056986,120]
[342737120,1732090314720,-500.0,0.00056986,120]
[342737121,1732090314730,-500.0,0.00056986,120]
[342737122,1732090314739,-553.01,0.00056986,120]
[342737123,1732090314748,-500.0,0.00056986,120]
[342737124,1732090314757,-721.45,0.00056986,120]
[342737125,1732090314766,-2365.65,0.00056986,120]
[342737126,1732090314775,-181.66,0.00056986,120]
[342737127,1732090314785,-526.18,0.00056986,120]
[342737128,1732090314795,-500.0,0.00056986,120]
[342737129,1732090314805,-1140.86,0.00056986,120]
[342737130,1732090314814,-1206.39,0.00056986,120]
[342737131,1732090314823,-500.0,0.00056986,120]
[342737132,1732090314832,-851.18,0.00056986,120]
[342737133,1732090314842,-811.24,0.00056986,21]
[342737134,1732090314851,-500.0,0.00056986,120]
[342737135,1732090314860,-500.0,0.00056986,120]
[342737136,1732090314869,-500.0,0.00056986,120]
[342737137,1732090314878,-500.0,0.00056986,120]
[342737138,1732090314888,-500.0,0.00056986,120]
[342737139,1732090314899,-500.0,0.00056986,120]
[342737140,1732090314908,-314.22,0.00056986,120]
[342737141,1732090314917,-500.0,0.00056986,120]
[342737142,1732090314926,-500.0,0.00056986,120]
[342737143,1732090314935,-500.0,0.00056986,120]
[342737144,1732090314945,-500.0,0.00056986,120]
[342737145,1732090314955,-500.0,0.00056986,120]
[342737146,1732090314964,-158.55937663,0.00056986,120]
[342737147,1732090314974,-500.0,0.00056986,120]
[342737148,1732090314984,-1177.91,0.00056986,120]
[342737149,1732090314994,-500.0,0.00056986,120]
[342737150,1732090315002,-500.0,0.00056986,120]
[342737151,1732090315011,-3911.81,0.00056986,120]
[342737152,1732090315021,-7513.0,0.00056986,3]
[342737153,1732090315032,-500.0,0.00056986,120]
[342737154,1732090315041,-373.32,0.00056986,120]
[342737155,1732090315051,-810.73,0.00056986,120]
[342737156,1732090315060,-500.0,0.00056986,120]
[342737157,1732090315070,-500.0,0.00056986,120]
[342737158,1732090315079,-500.0,0.00056986,120]
[342737159,1732090315088,-618.5,0.00056986,120]
[342737160,1732090315097,-500.0,0.00056986,120]
[342737161,1732090315107,-153.52,0.00056986,120]
[342737162,1732090315116,-500.0,0.00056986,120]
[342737163,1732090315125,-500.0,0.00056986,120]
[342737164,1732090315134,-500.0,0.00056986,120]
[342737165,1732090315143,-500.0,0.00056986,21]
[342737166,1732090315152,-500.0,0.00056986,120]
[342737167,1732090315161,-500.0,0.00056986,120]
[342737168,1732090315171,-531.91,0.00056986,60]
[342737169,1732090315179,-500.0,0.00056986,120]
[342737170,1732090315188,-703.55,0.00056986,120]
[342737171,1732090315198,-500.0,0.00056986,120]
[342737172,1732090315207,-500.0,0.00056986,120]
[342737173,1732090315217,-578.53,0.00056986,120]
[342737174,1732090315226,-500.0,0.00056986,120]
[342737175,1732090315235,-250.52,0.00056986,120]
[342737176,1732090315245,-500.0,0.00056986,120]
[342737177,1732090315254,-238.62,0.00056986,120]
[342737178,1732090315263,-500.0,0.00056986,120]
[342737179,1732090315272,-500.0,0.00056986,120]
[342737180,1732090315281,-1133.36,0.00056986,120]
[342737181,1732090315291,-500.0,0.00056986,120]
[342737182,1732090315303,-500.0,0.00056986,120]
[342737183,1732090315312,-646.34,0.00056986,7]
[342737184,1732090315321,-500.0,0.00056986,120]
[342737185,1732090315331,-500.0,0.00056986,120]
[342737186,1732090315342,-500.0,0.00056986,120]
[342737187,1732090315351,-500.0,0.00056986,120]
[342737188,1732090315360,-1092.33,0.00056986,120]
[342737189,1732090315369,-500.0,0.00056986,120]
[342737190,1732090315379,-500.0,0.00056986,120]
[342737191,1732090315388,-500.0,0.00056986,120]
[342737192,1732090315397,-576.16,0.00056986,120]
[342737193,1732090315407,-500.0,0.00056986,120]
[342737194,1732090315416,-642.09,0.00056986,3]
[342737195,1732090315425,-1126.69,0.00056986,120]
[342737196,1732090315435,-500.0,0.00056986,120]
[342737197,1732090315444,-705.53,0.00056986,120]
[342737198,1732090315454,-500.0,0.00056986,120]
[342737199,1732090315463,-500.0,0.00056986,120]
[342737200,1732090315472,-1013.55,0.00056986,120]
[342737201,1732090315481,-183.08,0.00056986,120]
[342737202,1732090315490,-1520.14,0.00056986,120]
[342737203,1732090315499,-500.0,0.00056986,120]
[342737204,1732090315508,-500.0,0.00056986,120]
[342737205,1732090315517,-500.0,0.00056986,120]
[342737206,1732090315527,-500.0,0.00056986,120]
[342737207,1732090315540,-500.0,0.00056986,21]
[342737208,1732090315550,-500.0,0.00056986,120]
[342737209,1732090315559,-2168.51,0.00056986,120]
[342737210,1732090315568,-500.0,0.00056986,120]
[342737211,1732090315577,-500.0,0.00056986,120]
[342737212,1732090315586,-500.0,0.00056986,120]
[342737213,1732090315596,-500.0,0.00056986,120]
[342737214,1732090315606,-500.0,0.00056986,120]
[342737215,1732090315616,-500.0,0.00056986,120]
[342737216,1732090315625,-500.0,0.00056986,120]
[342737217,1732090315634,-500.0,0.00056986,120]
[342737218,1732090315643,-500.0,0.00056986,120]
[342737219,1732090315653,-500.0,0.00056986,120]
[342737220,1732090315663,-594.32,0.00056986,120]
[342737221,1732090315672,-500.0,0.00056986,120]
[342737222,1732090315682,-500.0,0.00056986,120]
[342737223,1732090315691,-500.0,0.00056986,120]
[342737224,1732090315700,-709.11,0.00056986,120]
[342737225,1732090315710,-511.99,0.00056986,120]
[342737226,1732090315720,-500.0,0.00056986,120]
[342737227,1732090315729,-702.33,0.00056986,120]
[342737228,1732090315738,-500.0,0.00056986,120]
[342737229,1732090315747,-500.0,0.00056986,120]
[342737230,1732090315756,-500.0,0.00056986,120]
[342737231,1732090315766,-500.0,0.00056986,120]
[342737232,1732090315775,-500.0,0.00056986,120]
[342737233,1732090315787,-500.0,0.00056986,120]
[342737234,1732090315796,-500.0,0.00056986,120]
[342737235,1732090315806,-637.10850012,0.00056986,120]
[342737236,1732090315815,-500.0,0.00056986,120]
[342737237,1732090315824,-500.0,0.00056986,120]
[342737238,1732090315833,-500.0,0.00056986,120]
[342737239,1732090315843,-500.0,0.00056986,120]
[342737240,1732090315852,-228.99122241,0.00056986,120]
[342737241,1732090315862,-797.68,0.00056986,120]
[342737242,1732090315871,-500.0,0.00056986,120]
[342737243,1732090315881,-500.0,0.00056986,120]
[342737244,1732090315890,-500.0,0.00056986,120]
[342737245,1732090315900,-500.0,0.00056986,120]
[342737246,1732090315910,-500.0,0.00056986,120]
[342737247,1732090315919,-500.0,0.00056986,120]
[342737248,1732090315929,-500.0,0.00056986,120]
[342737249,1732090315939,-500.0,0.00056986,120]
[342737250,1732090315949,-500.0,0.00056986,120]
[342737251,1732090315958,-500.0,0.00056986,120]
[342737252,1732090315967,-183.46344597,0.00056986,120]
[342737253,1732090316114,-500.0,0.00056986,120]
[342737254,1732090316126,-500.0,0.00056986,120]
[342737255,1732090316135,-500.0,0.00056986,120]
[342737256,1732090316144,-278.72,0.00056986,120]
[342737257,1732090316153,-503.19484783,0.00056986,120]
[342737258,1732090316162,-505.13421994,0.00056986,120]
[342737259,1732090316171,-500.0,0.00056986,120]
[342737260,1732090316181,-500.0,0.00056986,120]
[342737261,1732090316190,-500.0,0.00056986,120]
[342737262,1732090316199,-500.0,0.00056986,120]
[342737263,1732090316209,-500.0,0.00056986,120]
[342737264,1732090316218,-562.92,0.00056986,120]
[342737265,1732090316227,-500.0,0.00056986,120]
[342737266,1732090316236,-500.0,0.00056986,120]
[342737267,1732090316246,-500.0,0.00056986,120]
[342737268,1732090316254,-500.0,0.00056986,120]
[342737269,1732090316264,-150.0,0.00056986,120]
[342737270,1732090316273,-330.54324571,0.00056986,120]
[342737271,1732090316286,-500.0,0.00056986,120]
[342737272,1732090316299,-500.0,0.00056986,120]
[342737273,1732090316310,-500.0,0.00056986,120]
[342737274,1732090316319,-500.0,0.00056986,120]
[342737275,1732090316328,-500.0,0.00056986,120]
[342737276,1732090316338,-500.0,0.00056986,120]
[342737277,1732090316347,-500.0,0.00056986,120]
[342737278,1732090316357,-500.0,0.00056986,120]
[342737279,1732090316366,-500.0,0.00056986,120]
[342737280,1732090316376,-500.0,0.00056986,120]
[342737281,1732090316386,-500.0,0.00056986,120]
[342737282,1732090316395,-514.31,0.00056986,120]
[342737283,1732090316405,-500.0,0.00056986,120]
[342737284,1732090316414,-500.0,0.00056986,120]
[342737285,1732090316425,-500.0,0.00056986,120]
[342737286,1732090316434,-240.97,0.00056986,120]
[342737287,1732090316443,-500.0,0.00056986,120]
[342737288,1732090316452,-500.0,0.00056986,120]
[342737289,1732090316461,-500.0,0.00056986,120]
[342737290,1732090316470,-500.0,0.00056986,120]
[342737291,1732090316480,-500.0,0.00056986,120]
[342737292,1732090316490,-849.65,0.00056986,120]
[342737293,1732090316499,-500.0,0.00056986,120]
[342737294,1732090316508,-500.0,0.00056986,120]
[342737295,1732090316517,-500.0,0.00056986,120]
[342737296,1732090316527,-245.92907367,0.00056986,120]
[342737297,1732090316540,-500.0,0.00056986,120]
[342737298,1732090316549,-569.0,0.00056986,120]
[342737299,1732090316558,-500.0,0.00056986,120]
[342737300,1732090316568,-500.0,0.00056986,120]
[342737301,1732090316579,-500.0,0.00056986,120]
[342737302,1732090316588,-500.0,0.00056986,120]
[342737303,1732090316597,-2068.02,0.00056986,120]
[342737304,1732090316606,-700.75,0.00056986,120]
[342737305,1732090316616,-500.0,0.00056986,120]
[342737306,1732090316625,-500.0,0.00056986,120]
[342737307,1732090316634,-798.52,0.00056986,120]
[342737308,1732090316644,-1516.88,0.00056986,120]
[342737309,1732090316654,-161.88574664,0.00056986,120]
[342737310,1732090316663,-1000.0,0.00056986,120]
[342737311,1732090316673,-982.26,0.00056986,120]
[342737312,1732090316683,-500.0,0.00056986,120]
[342737313,1732090316692,-500.0,0.00056986,120]
[342737314,1732090316702,-500.0,0.00056986,120]
[342737315,1732090316711,-500.0,0.00056986,120]
[342737316,1732090316720,-650.76,0.00056986,21]
[342737317,1732090316730,-179.88501659,0.00056986,120]
[342737318,1732090316740,-500.0,0.00056986,120]
[342737319,1732090316750,-500.0,0.00056986,120]
[342737320,1732090316759,-500.0,0.00056986,120]
[342737321,1732090316768,-500.0,0.00056986,30]
[342737322,1732090316779,-998.06,0.00056986,120]
[342737323,1732090316798,-500.0,0.00056986,120]
[342737324,1732090316808,-500.0,0.00056986,120]
[342737325,1732090316818,-2581.57,0.00056986,120]
[342737326,1732090316828,-500.0,0.00056986,120]
[342737327,1732090316838,-500.0,0.00056986,120]
[342737328,1732090316849,-635.36,0.00056986,120]
[342737329,1732090316859,-278.71034702,0.00056986,120]
[342737330,1732090316869,-500.0,0.00056986,120]
[342737331,1732090316879,-601.20298303,0.00056986,120]
[342737332,1732090316889,-500.0,0.00056986,120]
[342737333,1732090316899,-3061.68,0.00056986,120]
[342737334,1732090316908,-500.0,0.00056986,120]
[342737335,1732090316917,-2031.6,0.00056986,120]
[342737336,1732090316928,-500.0,0.00056986,120]
[342737337,1732090316938,-500.0,0.00056986,120]
[342737338,1732090316947,-500.0,0.00056986,120]
[342737339,1732090316957,-3206.56,0.00056986,120]
[342737340,1732090316967,-155.95098019,0.00056986,120]
[342737341,1732090316976,-711.44,0.00056986,120]
[342737342,1732090316986,-608.53803362,0.00056986,120]
[342737343,1732090316996,-500.0,0.00056986,120]
[342737344,1732090317006,-500.0,0.00056986,120]
[342737345,1732090317016,-500.0,0.00056986,120]
[342737346,1732090317025,-729.82,0.00056986,120]
[342737347,1732090317043,-5192.93,0.00056986,120]
[342737348,1732090317053,-500.0,0.00056986,120]
[342737349,1732090317063,-500.0,0.00056986,120]
[342737350,1732090317073,-500.0,0.00056986,120]
[342737351,1732090317083,-500.0,0.00056986,120]
[342737352,1732090317093,-500.0,0.00056986,120]
[342737353,1732090317103,-500.0,0.00056986,120]
[342737354,1732090317112,-500.0,0.00056986,120]
[342737355,1732090317122,-500.0,0.00056986,120]
[342737356,1732090317132,-500.0,0.00056986,120]
[342737357,1732090317141,-602.5,0.00056986,120]
[342737358,1732090317151,-707.74,0.00056986,120]
[342737359,1732090317161,-500.0,0.00056986,120]
[342737360,1732090317171,-647.87,0.00056986,120]
[342737361,1732090317181,-343.63968243,0.00056986,120]
[342737362,1732090317191,-500.0,0.00056986,120]
[342737363,1732090317201,-500.0,0.00056986,120]
[342737364,1732090317210,-720.2,0.00056986,120]
[342737365,1732090317219,-500.0,0.00056986,120]
[342737366,1732090317228,-500.0,0.00056986,120]
[342737367,1732090317238,-500.0,0.00056986,120]
[342737368,1732090317248,-717.59,0.00056986,120]
[342737369,1732090317257,-1703.66,0.00056986,120]
[342737370,1732090317266,-508.31,0.00056986,120]
[342737371,1732090317275,-500.0,0.00056986,120]
[342737372,1732090317290,-500.0,0.00056986,120]
[342737373,1732090317303,-500.0,0.00056986,120]
[342737374,1732090317311,-500.0,0.00056986,120]
[342737375,1732090317320,-500.0,0.00056986,120]
[342737376,1732090317330,-500.0,0.00056986,120]
[342737377,1732090317339,-2604.2,0.00056986,120]
[342737378,1732090317349,-500.0,0.00056986,120]
[342737379,1732090317358,-2810.53,0.00056986,120]
[342737380,1732090317367,-500.0,0.00056986,120]
[342737381,1732090317378,-500.0,0.00056986,120]
[342737382,1732090317387,-165.05088454,0.00056986,120]
[342737383,1732090317397,-2080.78,0.00056986,120]
[342737384,1732090317406,-500.0,0.00056986,120]
[342737385,1732090317416,-500.22,0.00056986,120]
[342737386,1732090317426,-1137.2,0.00056986,3]
[342737387,1732090317435,-642.24,0.00056986,30]
[342737388,1732090317444,-1301.4,0.00056986,120]
[342737389,1732090317453,-500.0,0.00056986,120]
[342737390,1732090317463,-505.72,0.00056986,120]
[342737391,1732090317472,-500.0,0.00056986,120]
[342737392,1732090317481,-500.0,0.00056986,120]
[342737393,1732090317490,-500.0,0.00056986,120]
[342737394,1732090317499,-500.0,0.00056986,120]
[342737395,1732090317508,-500.0,0.00056986,120]
[342737396,1732090317518,-946.93,0.00056986,120]
[342737397,1732090317527,-500.0,0.00056986,120]
[342737398,1732090317541,-500.0,0.00056986,120]
[342737399,1732090317550,-500.0,0.00056986,120]
[342737400,1732090317559,-500.0,0.00056986,120]
[342737401,1732090317568,-667.95,0.00056986,120]
[342737402,1732090317577,-500.0,0.00056986,120]
[342737403,1732090317586,-500.0,0.00056986,120]
[342737404,1732090317596,-500.0,0.00056986,120]
[342737405,1732090317605,-500.0,0.00056986,120]
[342737406,1732090317614,-506.77413202,0.00056986,120]
[342737407,1732090317623,-500.0,0.00056986,120]
[342737408,1732090317633,-365.70438311,0.00056986,120]
[342737409,1732090317642,-500.0,0.00056986,120]
[342737410,1732090317651,-500.0,0.00056986,120]
[342737411,1732090317661,-500.0,0.00056986,120]
[342737412,1732090317670,-852.9,0.00056986,120]
[342737413,1732090317679,-500.0,0.00056986,120]
[342737414,1732090317688,-500.0,0.00056986,120]
[342737415,1732090317698,-338.06247649,0.00056986,120]
[342737416,1732090317707,-750.0,0.00057,2]
[342737417,1732090317716,-15573.0,0.00057,120]
[342737418,1732090317725,-15573.0,0.00057,120]
[342737419,1732090317734,-15573.0,0.00057,120]
[342737420,1732090317743,-15573.0,0.00057,120]
[342737421,1732090317753,-204.0,0.0005701,120]
[342737422,1732090317763,-201.0,0.0005701,120]
[342737423,1732090317772,-1100.0,0.0005701,120]
[342737424,1732090317788,-500.0,0.0005701,120]
[342737425,1732090317797,-151.0,0.00057123,120]
[342737426,1732090317806,-1322.0,0.00057186,30]
[342737427,1732090317816,-500.0,0.00057259,120]
[342737428,1732090317825,-500.0,0.00057259,120]
[342737429,1732090317834,-500.0,0.00057259,120]
[342737430,1732090317843,-500.0,0.0005726,120]
[342737431,1732090317852,-500.0,0.0005726,120]
[342737432,1732090317861,-583.63,0.0005726,120]
[342737433,1732090317870,-500.0,0.0005726,120]
[342737434,1732090317879,-500.0,0.0005726,120]
[342737435,1732090317889,-1068.5,0.0005726,120]
[342737436,1732090317899,-598.94,0.0005726,120]
[342737437,1732090317908,-1682.29,0.0005726,120]
[342737438,1732090317917,-500.0,0.0005726,120]
[342737439,1732090317927,-500.0,0.0005726,120]
[342737440,1732090317936,-12247.35,0.0005726,120]
[342737441,1732090317945,-1420.1,0.0005726,120]
[342737442,1732090317954,-500.0,0.0005726,120]
[342737443,1732090317963,-1292.82,0.0005726,120]
[342737444,1732090317972,-500.0,0.0005726,120]
[342737445,1732090317981,-1329.44,0.0005726,120]
[342737446,1732090317990,-500.0,0.0005726,120]
[342737447,1732090317999,-500.0,0.0005726,120]
[342737448,1732090318008,-1607.8,0.0005726,120]
[342737449,1732090318017,-500.0,0.0005726,120]
[342737450,1732090318026,-1376.52,0.0005726,120]
[342737451,1732090318041,-500.0,0.0005726,120]
[342737452,1732090318050,-500.0,0.0005726,120]
[342737453,1732090318059,-742.7,0.0005726,20]
[342737454,1732090318069,-843.95,0.0005726,120]
[342737455,1732090318079,-500.0,0.0005726,120]
[342737456,1732090318088,-500.0,0.0005726,120]
[342737457,1732090318098,-500.0,0.0005726,120]
[342737458,1732090318107,-500.0,0.0005726,120]
[342737459,1732090318116,-500.0,0.0005726,120]
[342737460,1732090318125,-500.0,0.0005726,120]
[342737461,1732090318134,-500.0,0.0005726,120]
[342737462,1732090318143,-500.0,0.0005726,120]
[342737463,1732090318153,-1244.57,0.0005726,120]
[342737464,1732090318162,-500.0,0.0005726,120]
[342737465,1732090318171,-1316.06,0.0005726,120]
[342737466,1732090318180,-281.54423124,0.0005726,120]
[342737467,1732090318189,-500.0,0.0005726,120]
[342737468,1732090318198,-553.01,0.0005726,120]
[342737469,1732090318330,-500.0,0.0005726,120]
[342737470,1732090318354,-721.45,0.0005726,120]
[342737471,1732090318363,-2365.65,0.0005726,120]
[342737472,1732090318373,-526.18,0.0005726,120]
[342737473,1732090318382,-500.0,0.0005726,120]
[342737474,1732090318392,-1140.86,0.0005726,120]
[342737475,1732090318401,-1206.39,0.0005726,120]
[342737476,1732090318410,-500.0,0.0005726,120]
[342737477,1732090318419,-851.18,0.0005726,120]
[342737478,1732090318428,-811.24,0.0005726,21]
[342737479,1732090318437,-500.0,0.0005726,120]
[342737480,1732090318446,-500.0,0.0005726,120]
[342737481,1732090318455,-500.0,0.0005726,120]
[342737482,1732090318464,-500.0,0.0005726,120]
[342737483,1732090318473,-175.9,0.0005726,120]
[342737484,1732090318482,-500.0,0.0005726,120]
[342737485,1732090318491,-500.0,0.0005726,120]
[342737486,1732090318500,-500.0,0.0005726,120]
[342737487,1732090318508,-500.0,0.0005726,120]
[342737488,1732090318518,-500.0,0.0005726,120]
[342737489,1732090318527,-351.63374185,0.0005726,120]
[342737490,1732090318541,-1177.91,0.0005726,120]
[342737491,1732090318550,-500.0,0.0005726,120]
[342737492,1732090318559,-3911.81,0.0005726,120]
[342737493,1732090318568,-7513.0,0.0005726,3]
[342737494,1732090318578,-500.0,0.0005726,120]
[342737495,1732090318587,-810.73,0.0005726,120]
[342737496,1732090318596,-500.0,0.0005726,120]
[342737497,1732090318605,-500.0,0.0005726,120]
[342737498,1732090318614,-500.0,0.0005726,120]
[342737499,1732090318624,-618.5,0.0005726,120]
[342737500,1732090318633,-500.0,0.0005726,120]
[342737501,1732090318643,-500.0,0.0005726,120]
[342737502,1732090318652,-500.0,0.0005726,120]
[342737503,1732090318662,-500.0,0.0005726,120]
[342737504,1732090318671,-500.0,0.0005726,21]
[342737505,1732090318681,-619.96,0.0005726,120]
[342737506,1732090318690,-500.0,0.0005726,120]
[342737507,1732090318700,-531.91,0.0005726,60]
[342737508,1732090318709,-507.19728302,0.0005726,120]
[342737509,1732090318718,-703.55,0.0005726,120]
[342737510,1732090318728,-500.0,0.0005726,120]
[342737511,1732090318738,-500.0,0.0005726,120]
[342737512,1732090318748,-578.53,0.0005726,120]
[342737513,1732090318757,-500.0,0.0005726,120]
[342737514,1732090318766,-500.0,0.0005726,120]
[342737515,1732090318776,-500.0,0.0005726,120]
[342737516,1732090318789,-500.0,0.0005726,120]
[342737517,1732090318799,-1133.36,0.0005726,120]
[342737518,1732090318808,-500.0,0.0005726,120]
[342737519,1732090318818,-500.0,0.0005726,120]
[342737520,1732090318827,-646.34,0.0005726,7]
[342737521,1732090318836,-500.0,0.0005726,120]
[342737522,1732090318846,-187.83369504,0.0005726,120]
[342737523,1732090318856,-500.0,0.0005726,120]
[342737524,1732090318865,-500.0,0.0005726,120]
[342737525,1732090318875,-1092.33,0.0005726,120]
[342737526,1732090318886,-500.0,0.0005726,120]
[342737527,1732090318895,-500.0,0.0005726,120]
[342737528,1732090318905,-500.0,0.0005726,120]
[342737529,1732090318914,-576.16,0.0005726,120]
[342737530,1732090318924,-500.0,0.0005726,120]
[342737531,1732090318933,-642.09,0.0005726,3]
[342737532,1732090318943,-1126.69,0.0005726,120]
[342737533,1732090318953,-500.0,0.0005726,120]
[342737534,1732090318962,-705.53,0.0005726,120]
[342737535,1732090318972,-500.0,0.0005726,120]
[342737536,1732090318981,-500.0,0.0005726,120]
[342737537,1732090318991,-1013.55,0.0005726,120]
[342737538,1732090319001,-1520.14,0.0005726,120]
[342737539,1732090319011,-500.0,0.0005726,120]
[342737540,1732090319021,-500.0,0.0005726,120]
[342737541,1732090319034,-360.77457337,0.0005726,120]
[342737542,1732090319043,-500.0,0.0005726,120]
[342737543,1732090319053,-500.0,0.0005726,21]
[342737544,1732090319062,-500.0,0.0005726,120]
[342737545,1732090319071,-2168.51,0.0005726,120]
[342737546,1732090319081,-500.0,0.0005726,120]
[342737547,1732090319091,-500.0,0.0005726,120]
[342737548,1732090319101,-500.0,0.0005726,120]
[342737549,1732090319110,-500.0,0.0005726,120]
[342737550,1732090319120,-500.0,0.0005726,120]
[342737551,1732090319129,-500.0,0.0005726,120]
[342737552,1732090319139,-500.0,0.0005726,120]
[342737553,1732090319148,-500.0,0.0005726,120]
[342737554,1732090319158,-594.32,0.0005726,120]
[342737555,1732090319167,-500.0,0.0005726,120]
[342737556,1732090319177,-500.0,0.0005726,120]
[342737557,1732090319186,-500.0,0.0005726,120]
[342737558,1732090319196,-709.11,0.0005726,120]